bitfinex/quotes_ETHUSD_20250129
["timestamp","ask_amount","ask_price","bid_price","bid_amount"]
[1738192136074,0.03095345,3141.8,3141.3,3.902662]
[1738192136273,0.03071907,3141.4,3141.3,3.902662]
[1738192136649,0.03071907,3141.4,3141.3,0.719292]
[1738192136650,0.03091404,3141.4,3141.3,0.719292]
[1738192136850,0.2758,3141.9,3140.7,0.8094]
[1738192137106,0.0075,3142.4,3141.4,3.18323]
[1738192137107,3.18253,3142.2,3141.4,3.18323]
[1738192137251,3.18253,3142.2,3141.7,3.18296]
[1738192137455,0.03114842,3141.8,3141.7,3.18296]
[1738192137694,3.18253,3142.2,3141.7,3.18296]
[1738192138075,0.2758,3142.3,3141.7,3.18296]
[1738192138305,0.2758,3142.3,3141.5,3.18314]
[1738192138306,3.45818,3142.3,3141.5,3.18314]
[1738192138474,0.03138274,3142.2,3141.5,3.582394]
[1738192138673,0.03138274,3142.2,3141.7,3.18292]
[1738192139511,0.03138274,3142.2,3141.9,3.18277]
[1738192139861,0.2758,3142.3,3141.9,3.18277]
[1738192140063,0.03132417,3142.1,3141.7,3.18292]
[1738192140360,0.03126559,3142.0,3141.9,3.18273]
[1738192140565,0.16113,3142.9,3141.9,0.8094]
[1738192140566,0.2758,3142.6,3141.9,0.8094]
[1738192140816,3.34296,3142.9,3142.2,3.18242]
[1738192141028,3.1824,3142.3,3141.7,3.18293]
[1738192141325,3.18301,3141.7,3141.2,0.63847611]
[1738192141463,3.18288,3141.8,3141.2,3.82189611]
[1738192141660,3.1832,3141.5,3140.9,0.8094]
[1738192141961,3.1832,3141.5,3140.3,3.18432]
[1738192141962,0.59412,3141.5,3140.3,3.18432]
[1738192142184,3.18354,3141.2,3140.6,3.18409]
[1738192142385,3.18329,3141.4,3140.6,3.18409]
[1738192142584,3.18345,3141.3,3140.4,3.18427]
[1738192142790,3.18345,3141.3,3140.4,3.18425]
[1738192142791,3.1836,3141.1,3140.4,3.18425]
[1738192143309,3.18345,3141.3,3140.2,3.99387]
[1738192143310,3.18388,3140.9,3140.2,3.99387]
[1738192143599,0.2758,3140.8,3139.5,0.8094]
[1738192143760,0.2758,3140.8,3140.0,3.18462]
[1738192143961,0.2758,3140.8,3140.3,3.18439]
[1738192144167,0.2758,3140.8,3140.1,3.1846]
[1738192144477,3.45972,3140.8,3140.2,0.31846]
[1738192145184,3.1841,3140.6,3139.9,3.18479]
[1738192145403,0.2758,3140.6,3139.1,0.8084]
[1738192145601,3.18523,3139.5,3138.9,3.18576]
[1738192145805,0.2758,3139.7,3139.0,3.49424407]
[1738192146463,0.02909689,3139.6,3139.1,3.1856]
[1738192146683,0.02909689,3139.6,3139.0,3.49424407]
[1738192146886,0.02909689,3139.6,3139.1,3.18562]
[1738192148422,0.02909689,3139.6,3139.1,3.85361641]
[1738192148782,3.21421689,3139.6,3139.1,0.66799641]
[1738192148985,3.18529,3139.5,3138.7,3.186]
[1738192149187,3.1855,3139.3,3138.5,4.01426]
[1738192149382,3.1857,3139.1,3138.4,3.18627]
[1738192149928,0.02838763,3139.0,3138.4,3.18627]
[1738192150222,0.02838763,3139.0,3138.2,0.8281]
[1738192150396,0.30418763,3139.0,3138.4,3.18632]
[1738192150921,3.48998763,3139.0,3138.3,3.18635]
[1738192151224,3.4616,3139.0,3138.4,3.18631]
[1738192151801,4.126313,3139.0,3138.1,3.18661]
[1738192152125,3.18586,3138.9,3138.1,3.18661]
[1738192152326,3.18608,3138.7,3137.9,3.18682]
[1738192152530,4.126253,3139.0,3138.0,3.18666]
[1738192152698,3.18596,3138.8,3138.1,3.18663]
[1738192152890,0.2758,3139.0,3137.8,0.0075]
[1738192153092,0.2758,3139.0,3138.5,3.18622]
[1738192153292,0.2758,3139.0,3138.0,3.18673]
[1738192153526,0.2758,3139.0,3138.0,3.505403]
[1738192153733,3.18596,3138.8,3138.2,3.18653]
[1738192154615,3.18596,3138.8,3138.0,3.505403]
[1738192154815,3.1861,3138.7,3138.0,3.18673]
[1738192155331,0.0075,3138.6,3137.4,3.18733]
[1738192155531,0.0075,3138.6,3137.1,3.18756]
[1738192155532,0.2758,3137.8,3137.1,3.18756]
[1738192155830,0.2758,3137.8,3136.9,0.8292]
[1738192156000,0.2758,3137.8,3137.3,3.18735]
[1738192156895,3.46277,3137.8,3137.1,3.18764]
[1738192157095,4.127721,3137.8,3136.9,3.18784]
[1738192157297,3.18712,3137.7,3137.0,3.18767]
[1738192158002,0.2758,3137.8,3137.2,3.18751]
[1738192158898,0.2758,3137.8,3137.3,3.1874]
[1738192159411,3.46274,3137.8,3137.1,3.18763]
[1738192159609,3.1871,3137.7,3137.1,3.18763]
[1738192159928,3.18725,3137.5,3136.8,3.18788]
[1738192160135,3.18725,3137.5,3136.6,3.18815]
[1738192160136,3.506725,3137.5,3136.6,3.18815]
[1738192160296,3.18765,3137.1,3136.1,3.1886]
[1738192160499,0.2758,3136.9,3136.1,3.1886]
[1738192160835,3.46366,3136.9,3136.3,3.18845]
[1738192161432,0.2758,3136.9,3136.3,3.18845]
[1738192161638,0.2758,3136.9,3136.6,3.1881]
[1738192162384,0.2758,3136.9,3136.5,3.18825]
[1738192162529,0.2758,3137.3,3137.2,3.18755]
[1738192163343,3.2833,3137.8,3137.2,3.18755]
[1738192163548,3.2833,3137.8,3137.3,3.18744]
[1738192163751,6.47025,3137.8,3137.2,3.18755]
[1738192163951,7.435962,3137.8,3137.2,3.18755]
[1738192164146,1.249012,3137.8,3136.7,3.18798]
[1738192164340,3.0075,3137.6,3136.7,3.18798]
[1738192164549,0.0075,3137.6,3136.7,3.18798]
[1738192164750,3.18735,3137.4,3136.7,3.18798]
[1738192165061,6.19471,3137.6,3136.9,3.18779]
[1738192165737,0.2758,3137.2,3136.5,3.18818]
[1738192165936,3.46339,3137.2,3136.6,3.18813]
[1738192166170,3.46339,3137.2,3136.4,3.18834]
[1738192166171,3.18767,3137.1,3136.4,3.18834]
[1738192166349,3.18767,3137.1,3136.2,3.18852]
[1738192166547,3.18807,3136.7,3136.1,3.18865]
[1738192166736,0.2758,3136.6,3136.1,3.18865]
[1738192166937,0.2758,3136.6,3135.4,6.18929]
[1738192166938,0.0075,3136.4,3135.4,0.8244]
[1738192167138,3.18891,3135.9,3135.1,4.014]
[1738192167367,3.18891,3135.9,3135.1,3.1896]
[1738192168159,3.18891,3135.9,3135.3,3.18941]
[1738192168775,0.0075,3136.0,3135.3,3.18941]
[1738192169077,3.19627,3136.0,3135.3,3.18941]
[1738192169265,3.86235,3136.0,3135.3,3.18941]
[1738192169645,3.86235,3136.0,3135.4,3.18936]
[1738192170383,0.2758,3136.2,3135.7,3.18905]
[1738192170571,3.2758,3136.2,3135.6,3.18913]
[1738192170767,0.2758,3136.2,3135.8,3.18896]
[1738192171169,0.2758,3136.6,3136.0,3.18874]
[1738192171482,0.1,3138.0,3136.5,3.18818]
[1738192171483,0.2758,3137.1,3136.5,3.18818]
[1738192171679,0.2758,3137.6,3136.5,4.51392033]
[1738192171854,3.18644,3138.3,3137.6,3.1871]
[1738192172181,0.2758,3138.2,3137.6,3.1871]
[1738192172346,0.2758,3138.2,3137.4,3.18735]
[1738192172548,3.18669,3138.1,3137.4,3.18735]
[1738192174270,3.18669,3138.1,3137.5,3.18723]
[1738192176619,3.18675,3138.0,3137.3,3.18744]
[1738192176921,3.2758,3138.2,3137.6,3.18707]
[1738192177082,3.2758,3138.2,3137.8,3.18687]
[1738192178305,3.2758,3138.2,3137.6,3.18709]
[1738192178501,3.18688,3137.9,3137.3,3.824956]
[1738192178702,3.19422,3138.1,3137.4,3.18726]
[1738192179323,3.18677,3138.0,3137.4,3.18726]
[1738192180586,0.2758,3137.5,3137.0,3.18771]
[1738192180824,0.2758,3137.5,3136.5,6.93093033]
[1738192180974,0.0075,3137.3,3136.5,3.18821]
[1738192181181,3.18807,3136.7,3136.1,3.18863]
[1738192181376,3.18822,3136.6,3135.9,3.18885]
[1738192181613,3.18827,3136.5,3135.9,3.18885]
[1738192182095,3.18807,3136.7,3136.1,3.18863]
[1738192183517,0.2758,3136.8,3136.4,3.18836]
[1738192183711,0.2758,3136.8,3136.2,3.18856]
[1738192184022,3.46382,3136.8,3136.2,3.18856]
[1738192184323,0.2758,3136.8,3136.3,3.1884]
[1738192184684,0.2758,3136.8,3136.2,3.18856]
[1738192184913,4.110122,3136.8,3136.2,3.18856]
[1738192185106,4.110122,3136.8,3136.0,3.18874]
[1738192185313,0.922162,3136.8,3136.2,3.18853]
[1738192185720,0.922162,3136.8,3136.0,3.18874]
[1738192186020,0.2758,3136.8,3136.0,3.18874]
[1738192186223,3.0,3136.7,3136.3,3.18846]
[1738192186387,0.2758,3136.8,3136.3,3.18846]
[1738192186588,0.2758,3137.1,3136.5,3.18826]
[1738192187030,6.46346,3137.1,3136.5,3.18826]
[1738192188199,6.46346,3137.1,3136.5,6.37643]
[1738192188426,0.2758,3137.1,3136.5,3.18817]
[1738192188707,3.18691,3137.9,3137.0,3.18769]
[1738192188708,0.2758,3137.5,3137.0,3.18769]
[1738192188903,0.2758,3137.5,3136.3,0.8223]
[1738192188904,3.46267,3137.9,3137.3,3.18744]
[1738192189213,0.940734,3137.9,3137.3,3.18744]
[1738192189408,0.2758,3137.9,3137.5,3.18716]
[1738192190139,0.2758,3137.9,3137.3,3.18744]
[1738192190527,3.0,3138.0,3137.0,0.7959]
[1738192190726,3.0,3138.0,3137.4,3.18728]
[1738192191037,6.18674,3138.0,3137.4,3.18728]
[1738192191511,6.18674,3138.0,3137.2,3.1875]
[1738192191715,6.18674,3138.0,3137.3,3.18738]
[1738192192227,0.2758,3138.2,3137.4,6.3747]
[1738192192427,3.18574,3139.0,3137.7,4.49362033]
[1738192192598,0.2758,3139.0,3138.7,3.186]
[1738192193216,0.2758,3139.0,3138.5,3.18615]
[1738192193714,3.46125,3139.3,3138.5,3.18615]
[1738192194021,3.46125,3139.3,3138.1,3.74272033]
[1738192194229,3.18566,3139.1,3138.4,3.18626]
[1738192195032,3.18566,3139.1,3138.5,3.1862]
[1738192195417,3.18566,3139.1,3138.4,3.18626]
[1738192196217,3.18566,3139.1,3138.5,3.18621]
[1738192196941,3.18566,3139.1,3138.4,3.18626]
[1738192197325,3.2758,3139.3,3138.7,3.18595]
[1738192197527,6.46123,3139.3,3138.6,3.18604]
[1738192198439,6.46123,3139.3,3138.7,3.186]
[1738192198647,3.18555,3139.2,3138.5,3.99677]
[1738192199316,4.157748,3139.2,3138.3,3.18641]
[1738192199518,0.2758,3139.3,3138.2,0.7557]
[1738192199718,0.2758,3139.7,3139.5,3.18519]
[1738192199950,3.46053,3140.0,3139.3,3.18534]
[1738192200239,6.18482,3139.9,3139.3,3.18534]
[1738192200645,0.0075,3139.9,3138.9,3.18582]
[1738192200813,3.18486,3139.9,3139.0,3.18572]
[1738192201011,3.18492,3139.8,3139.1,3.18553]
[1738192201629,0.0075,3139.9,3138.7,0.7557]
[1738192201815,0.0075,3139.7,3138.7,3.186]
[1738192202023,3.4614,3139.2,3138.5,3.1862]
[1738192202544,3.1857,3139.1,3138.5,3.1862]
[1738192202843,3.18574,3139.0,3138.3,3.1864]
[1738192203208,3.1857,3139.1,3138.3,3.8237]
[1738192203409,3.1857,3139.1,3138.5,3.18614]
[1738192205523,3.18573,3139.0,3138.5,3.18614]
[1738192206413,6.4614,3139.2,3138.5,3.18614]
[1738192206831,0.2758,3139.2,3138.7,3.18602]
[1738192207045,0.2758,3139.6,3138.9,3.18576]
[1738192207250,0.2758,3139.6,3138.7,0.8125]
[1738192207432,0.2758,3139.6,3138.8,3.18587]
[1738192207760,3.18523,3139.5,3138.9,3.18582]
[1738192208114,3.18549,3139.3,3138.6,3.18612]
[1738192208311,3.18523,3139.5,3138.6,3.18612]
[1738192208515,3.18534,3139.4,3138.8,3.18592]
[1738192209547,3.18553,3139.2,3138.4,3.99876]
[1738192209716,3.18568,3139.1,3138.5,3.18622]
[1738192210049,3.18553,3139.2,3138.5,3.18622]
[1738192210249,0.2833,3139.3,3138.3,3.18634]
[1738192210434,3.18598,3138.8,3138.1,10.88820033]
[1738192210616,3.18598,3138.8,3138.1,7.70158033]
[1738192210942,3.18598,3138.8,3138.2,3.18653]
[1738192211609,0.2758,3139.3,3138.1,1.54245803]
[1738192211815,0.2758,3139.6,3138.8,3.18583]
[1738192212145,0.2758,3139.6,3139.2,3.18551]
[1738192212362,3.18498,3139.8,3139.2,3.18551]
[1738192212773,3.18504,3139.7,3139.0,3.18565]
[1738192213059,3.18514,3139.6,3139.0,3.18565]
[1738192213413,3.18527,3139.5,3138.9,3.18581]
[1738192213718,3.18512,3139.6,3139.0,3.18564]
[1738192215861,3.0,3139.7,3139.0,0.637145]
[1738192216065,3.0,3139.7,3139.2,3.18542]
[1738192216247,3.0,3139.7,3139.0,3.1857]
[1738192216450,3.18518,3139.6,3139.0,3.1857]
[1738192218374,3.18518,3139.6,3138.8,3.1859]
[1738192218540,3.18517,3139.6,3139.0,3.18564]
[1738192218869,3.18534,3139.4,3138.8,3.18593]
[1738192219227,3.18534,3139.4,3138.8,3.902663]
[1738192219625,3.18534,3139.4,3138.8,3.902583]
[1738192219850,3.18517,3139.6,3138.8,3.902583]
[1738192220037,3.18517,3139.6,3138.9,3.18576]
[1738192220225,3.18525,3139.5,3138.9,3.18576]
[1738192220555,3.18533,3139.4,3138.8,3.902583]
[1738192220723,3.18517,3139.6,3138.8,3.902583]
[1738192220922,3.18517,3139.6,3139.0,3.1857]
[1738192222367,6.37037,3139.6,3139.0,3.1857]
[1738192222669,3.18517,3139.6,3139.0,3.1857]
[1738192222839,3.18517,3139.6,3138.9,0.4697883]
[1738192222840,3.18528,3139.5,3138.9,3.6555983]
[1738192224873,0.2758,3140.0,3139.4,3.18526]
[1738192225071,0.2758,3140.0,3139.5,3.18513]
[1738192225271,3.18411,3140.6,3139.6,3.18505]
[1738192225272,0.2758,3140.3,3139.6,3.18505]
[1738192225470,3.18453,3140.2,3139.6,3.18505]
[1738192225677,3.18461,3140.1,3139.6,3.18505]
[1738192225878,0.2758,3141.2,3139.6,0.7484886]
[1738192226039,3.45934,3141.2,3140.6,3.18401]
[1738192226379,3.18292,3141.8,3141.0,6.27224431]
[1738192226380,3.18312,3141.6,3141.0,6.27224431]
[1738192226695,3.18312,3141.6,3141.0,3.18369]
[1738192226898,0.84713007,3141.7,3141.0,3.08855431]
[1738192227059,0.84713007,3141.7,3141.6,3.18309]
[1738192227397,0.84713007,3141.7,3141.3,3.1833]
[1738192227895,3.18279,3141.9,3141.3,3.1833]
[1738192228881,3.18279,3141.9,3141.1,6.3671]
[1738192229079,3.18279,3141.9,3141.1,3.18352]
[1738192229276,3.18279,3141.9,3141.2,0.318352]
[1738192229482,3.18279,3141.9,3141.2,3.501812]
[1738192229665,3.18307,3141.7,3140.8,3.73747161]
[1738192229847,3.18309,3141.6,3141.0,3.18363]
[1738192230047,3.18309,3141.6,3140.8,6.92135161]
[1738192230244,3.18326,3141.5,3140.8,6.92135161]
[1738192230563,3.18358,3141.2,3140.7,0.796]
[1738192230747,3.18369,3141.1,3140.4,6.92174161]
[1738192230977,3.18369,3141.1,3140.4,8.23235577]
[1738192231285,3.18415,3140.6,3139.9,4.00601]
[1738192231448,3.18415,3140.6,3139.9,0.8212]
[1738192231650,3.18431,3140.4,3139.9,0.8212]
[1738192231954,3.18431,3140.4,3139.5,1.46888242]
[1738192232168,3.18463,3140.1,3139.5,4.00634]
[1738192232369,3.1844,3140.4,3139.5,4.00634]
[1738192232684,3.1844,3140.4,3139.7,3.18498]
[1738192232842,0.05867286,3140.3,3139.7,3.18498]
[1738192233046,0.05867286,3140.3,3139.5,4.00634]
[1738192233047,3.18459,3140.2,3139.5,4.00634]
[1738192233277,3.18459,3140.2,3139.6,3.18511]
[1738192233479,3.45969,3140.9,3140.3,3.1844]
[1738192233678,3.18391,3140.8,3140.1,6.36914]
[1738192233882,3.18391,3140.8,3140.2,1.01066116]
[1738192234047,0.2758,3140.9,3140.3,3.18432]
[1738192234248,3.18362,3141.1,3140.3,4.00552]
[1738192235173,3.18362,3141.1,3140.3,0.8212]
[1738192235174,3.18386,3140.9,3140.3,0.8212]
[1738192235374,3.18386,3140.9,3140.3,1.64128712]
[1738192235570,3.18366,3141.1,3140.4,3.1843]
[1738192235571,3.1837,3141.0,3140.4,3.1843]
[1738192235782,0.05815956,3140.8,3140.4,3.1843]
[1738192235984,0.05785934,3140.9,3140.4,3.1843]
[1738192236285,0.0580001,3140.8,3140.4,0.48255871]
[1738192236692,0.0580001,3140.8,3140.3,4.82567712]
[1738192236898,0.0580001,3140.8,3140.4,3.18426]
[1738192237100,3.45889,3141.6,3140.9,3.18371]
[1738192237306,4.656182,3143.0,3140.4,3.73747161]
[1738192237307,3.18295,3141.8,3141.0,3.98969]
[1738192237478,0.2758,3141.9,3141.3,3.18333]
[1738192237683,3.18289,3141.8,3141.0,1.57871616]
[1738192238204,3.18289,3141.8,3141.2,3.18342]
[1738192238902,0.2758,3141.9,3141.2,3.18342]
[1738192240203,3.18297,3141.8,3141.2,3.18342]
[1738192240795,0.671645,3141.8,3141.0,0.806]
[1738192240997,3.18339,3141.4,3140.8,3.18388]
[1738192241193,3.0,3141.5,3140.5,3.18419]
[1738192241397,3.0,3141.5,3140.9,3.18379]
[1738192241604,3.0,3141.5,3140.4,4.51387161]
[1738192241605,3.18291,3141.8,3141.2,3.18342]
[1738192242092,6.18299,3141.7,3141.1,0.7764]
[1738192242411,3.1832,3141.5,3140.8,3.96029]
[1738192242575,3.18318,3141.6,3140.8,3.96029]
[1738192242777,3.18337,3141.4,3140.8,4.674725]
[1738192243172,3.1839,3140.8,3140.5,0.45138716]
[1738192243410,0.0075,3141.2,3140.0,0.7764]
[1738192243706,0.0075,3141.2,3139.6,3.73747161]
[1738192243707,3.18451,3140.2,3139.6,4.51387161]
[1738192243908,3.18451,3140.2,3139.6,0.7764]
[1738192244082,0.2758,3140.6,3140.0,3.18461]
[1738192244287,0.2758,3141.0,3139.6,7.69898161]
[1738192244525,3.18438,3140.4,3139.7,3.18501]
[1738192245127,3.18438,3140.4,3139.6,7.69898161]
[1738192245328,3.18413,3140.6,3139.9,3.18472]
[1738192247031,3.18413,3140.6,3139.8,3.82354182]
[1738192247197,3.0,3140.9,3139.8,3.82354182]
[1738192247198,3.18461,3140.1,3139.8,0.63870182]
[1738192247402,3.18451,3140.2,3139.6,3.96148]
[1738192247823,3.18451,3140.2,3139.6,1.42892708]
[1738192248024,3.18471,3140.0,3139.6,1.42892708]
[1738192248209,3.18471,3140.0,3139.6,1.89035179]
[1738192248538,3.18451,3140.2,3139.6,1.42892708]
[1738192248732,0.2758,3140.3,3139.6,0.65252708]
[1738192248924,3.18501,3139.7,3139.6,0.65252708]
[1738192249128,3.18501,3139.7,3138.9,3.18582]
[1738192249339,3.18528,3139.5,3139.1,0.62406194]
[1738192249551,3.18501,3139.7,3139.1,1.00505013]
[1738192249736,3.18501,3139.7,3139.1,0.38098819]
[1738192249913,3.18492,3139.8,3139.1,0.38098819]
[1738192250245,3.18485,3139.9,3139.2,3.1855]
[1738192250444,3.18485,3139.9,3139.3,0.35664882]
[1738192250634,0.05743396,3139.8,3139.3,0.35664882]
[1738192251565,3.24240396,3139.8,3139.3,0.35664882]
[1738192251844,0.05743396,3139.8,3139.2,3.18551]
[1738192252270,0.05743396,3139.8,3139.0,3.18565]
[1738192252430,3.18524,3139.5,3138.8,7.67530161]
[1738192252753,3.18524,3139.5,3138.9,3.18578]
[1738192252929,0.05709595,3139.4,3138.9,3.18578]
[1738192253115,0.05709595,3139.4,3139.0,0.76752516]
[1738192253317,3.1856,3139.2,3138.8,0.752]
[1738192253517,0.05709595,3139.4,3138.5,3.18622]
[1738192253848,3.1857,3139.1,3138.5,3.18622]
[1738192254050,3.1857,3139.1,3138.5,4.33979569]
[1738192254353,0.05655263,3139.0,3138.5,4.33979569]
[1738192254553,3.24230263,3139.0,3138.5,1.15357569]
[1738192254859,3.24230263,3139.0,3138.4,1.42566533]
[1738192255029,3.24230263,3139.0,3138.4,4.61199533]
[1738192256032,0.05655263,3139.0,3138.5,3.1862]
[1738192256228,3.18523,3139.5,3138.7,3.18603]
[1738192256425,0.2758,3139.6,3138.7,3.18596]
[1738192256426,0.0563175,3138.9,3138.7,3.18596]
[1738192256629,3.18539,3139.4,3138.8,0.318603]
[1738192257047,0.2758,3139.6,3138.8,0.318603]
[1738192257048,3.18563,3139.1,3138.8,0.318603]
[1738192257249,3.18563,3139.1,3138.5,3.18623]
[1738192257577,3.18601,3138.8,3138.1,3.18662]
[1738192257772,3.18601,3138.8,3138.1,3.94582]
[1738192258273,3.18564,3139.1,3138.4,3.18631]
[1738192258419,3.18539,3139.4,3138.5,0.318631]
[1738192258758,3.18539,3139.4,3138.8,3.94505]
[1738192259057,3.18539,3139.4,3138.8,0.7592]
[1738192259270,3.18553,3139.2,3138.8,0.7592]
[1738192259646,3.18553,3139.2,3138.5,4.282531]
[1738192259845,3.18553,3139.2,3138.6,0.80200026]
[1738192260046,3.18553,3139.2,3138.6,3.98811026]
[1738192260353,3.18552,3139.2,3138.6,0.80200026]
[1738192260652,3.18523,3139.5,3138.7,3.18601]
[1738192260865,3.18516,3139.6,3139.0,3.1857]
[1738192261177,3.18516,3139.6,3139.1,0.31857]
[1738192261364,0.2758,3139.9,3138.6,3.98810026]
[1738192261565,3.18578,3139.0,3138.6,0.80200026]
[1738192261766,3.18578,3139.0,3138.5,1.096331]
[1738192261767,3.18578,3139.0,3138.5,0.7777]
[1738192262348,0.0542115,3138.9,3138.5,0.7777]
[1738192263683,3.2401215,3138.9,3138.5,0.7777]
[1738192264264,3.18598,3138.8,3138.5,0.7777]
[1738192264450,3.18631,3138.5,3137.8,0.7596]
[1738192264652,3.18645,3138.3,3137.8,3.94654]
[1738192264889,3.18645,3138.3,3137.8,4.58893513]
[1738192265089,3.18631,3138.5,3137.8,4.58893513]
[1738192265090,0.05379261,3138.2,3137.8,4.58893513]
[1738192265600,3.18634,3138.4,3137.8,1.40199513]
[1738192265754,0.05373494,3138.1,3137.8,0.7596]
[1738192265954,3.18655,3138.2,3137.8,0.7596]
[1738192266508,0.05365327,3138.1,3137.8,0.7596]
[1738192267032,0.3776736,3138.1,3137.3,0.7693]
[1738192267189,3.18714,3137.7,3137.3,0.7693]
[1738192267376,3.18726,3137.5,3136.9,3.95714]
[1738192267577,0.05281493,3137.4,3136.9,3.95714]
[1738192269169,0.05281493,3137.4,3137.1,3.18765]
[1738192269376,3.0,3138.0,3137.6,3.18714]
[1738192269575,3.19396,3138.3,3137.6,0.8186]
[1738192269770,3.0,3138.0,3137.6,0.8186]
[1738192270220,0.05265621,3137.9,3137.6,0.8186]
[1738192271079,3.23951621,3137.9,3137.6,0.8186]
[1738192271309,3.23951621,3137.9,3137.3,3.18736]
[1738192271310,3.18698,3137.8,3137.2,4.257385]
[1738192271493,3.23951621,3137.9,3136.8,3.73747161]
[1738192271494,3.18712,3137.7,3136.9,3.18782]
[1738192271683,3.51551717,3137.7,3136.9,3.18782]
[1738192272015,0.05259717,3137.7,3137.0,0.7677]
[1738192272309,3.1863,3138.5,3137.8,3.18689]
[1738192272506,0.2758,3138.6,3137.6,3.95484]
[1738192272507,3.1866,3138.2,3137.6,3.95484]
[1738192272888,0.05286788,3138.1,3137.6,3.95484]
[1738192273088,0.05286788,3138.1,3137.6,4.669055]
[1738192273476,0.05286788,3138.1,3137.9,3.18676]
[1738192273813,3.18544,3139.3,3138.7,3.18596]
[1738192274000,0.2758,3139.4,3138.8,3.18585]
[1738192274378,3.18585,3138.9,3138.7,0.7971]
[1738192274619,0.2758,3139.4,3138.3,0.7554]
[1738192274823,3.18542,3139.3,3138.7,3.18602]
[1738192275018,3.18554,3139.2,3138.6,3.18611]
[1738192275556,3.186,3138.8,3138.3,0.7554]
[1738192276333,3.186,3138.8,3138.4,0.394189]
[1738192276949,6.37154,3139.0,3138.4,0.394189]
[1738192277153,3.46115,3139.4,3138.4,0.394189]
[1738192277154,3.18542,3139.3,3138.4,0.394189]
[1738192277363,3.1863,3138.5,3137.9,0.7554]
[1738192277652,3.18606,3138.7,3137.9,0.7554]
[1738192277855,0.2758,3139.3,3138.0,4.29497161]
[1738192278155,3.46084,3139.7,3139.1,3.1856]
[1738192278362,0.940366,3139.7,3139.0,0.7554]
[1738192278548,0.940366,3139.7,3138.7,4.00172]
[1738192278549,3.18538,3139.4,3138.7,4.00172]
[1738192278929,3.18542,3139.3,3138.7,4.00172]
[1738192279138,6.46086,3139.7,3138.2,3.1865]
[1738192279352,3.18591,3138.9,3138.3,0.8157]
[1738192279669,3.18588,3138.9,3138.3,0.8157]
[1738192279962,0.637151,3138.9,3137.6,3.73747161]
[1738192280164,6.37299,3138.3,3137.7,0.8157]
[1738192280466,3.18666,3138.1,3137.7,0.8157]
[1738192280853,0.04812428,3138.0,3137.7,0.8157]
[1738192281035,0.04812428,3138.0,3137.8,3.18686]
[1738192281238,0.04812428,3138.0,3137.7,0.8157]
[1738192281537,0.04812428,3138.0,3137.4,0.8112]
[1738192281538,3.18676,3138.0,3137.4,0.8112]
[1738192281743,0.04784838,3137.9,3137.4,1.58480416]
[1738192282264,3.23475838,3137.9,3137.4,1.58480416]
[1738192282467,0.04784838,3137.9,3137.4,1.58480416]
[1738192283059,0.04784838,3137.9,3137.4,4.77214416]
[1738192283453,0.04784838,3137.9,3137.4,1.58480416]
[1738192283651,3.23470838,3137.9,3137.4,0.8112]
[1738192283852,3.18701,3137.8,3137.2,3.18755]
[1738192284067,3.18701,3137.8,3137.1,0.7894]
[1738192284281,3.18716,3137.6,3137.1,0.7894]
[1738192284632,0.04745696,3137.5,3137.1,0.7894]
[1738192285034,0.04745696,3137.5,3137.1,1.187114]
[1738192285253,0.04745696,3137.5,3137.4,3.18735]
[1738192285457,3.18678,3138.0,3137.4,3.18735]
[1738192285662,0.04535976,3137.5,3137.4,3.18735]
[1738192285867,3.18678,3138.0,3137.4,3.18735]
[1738192286068,0.04535976,3137.5,3137.4,3.18735]
[1738192286251,3.18678,3138.0,3137.4,3.18735]
[1738192286452,0.04382245,3137.5,3137.4,3.18735]
[1738192286762,3.18678,3138.0,3137.4,3.18735]
[1738192286974,0.04382245,3137.5,3137.4,3.18735]
[1738192287142,3.18678,3138.0,3137.4,3.18735]
[1738192287349,0.04382245,3137.5,3137.4,3.18735]
[1738192287535,3.18678,3138.0,3137.4,3.18735]
[1738192287739,0.04382245,3137.5,3137.4,3.18735]
[1738192288364,3.18678,3138.0,3137.4,3.18735]
[1738192288582,0.04382245,3137.5,3137.4,3.18735]
[1738192288867,0.04382245,3137.5,3136.7,0.7986]
[1738192289069,3.18777,3137.0,3136.4,3.18836]
[1738192289269,3.18737,3137.4,3136.3,3.7986]
[1738192289449,0.04347619,3136.9,3136.8,0.7986]
[1738192289846,3.1877,3137.1,3136.4,3.9869]
[1738192290152,3.18725,3137.5,3136.8,3.18787]
[1738192290630,3.18725,3137.5,3136.9,3.18784]
[1738192290970,3.1876,3137.2,3136.5,3.18822]
[1738192291266,0.04359162,3137.1,3136.5,3.18822]
[1738192291471,0.04359162,3137.1,3136.8,3.18794]
[1738192291851,3.18725,3137.5,3136.8,3.18794]
[1738192292047,0.04353391,3137.0,3136.8,3.18794]
[1738192292252,0.04353391,3137.0,3136.6,3.18809]
[1738192292253,3.18767,3137.1,3136.4,7.17524]
[1738192292476,0.04347619,3136.9,3136.4,7.892764]
[1738192292672,3.18767,3137.1,3136.4,7.892764]
[1738192292878,3.23143847,3136.8,3136.1,0.8289]
[1738192293053,3.18852,3136.3,3135.3,0.8289]
[1738192293272,0.04323889,3136.7,3136.0,3.18868]
[1738192293469,3.18817,3136.6,3136.1,0.8289]
[1738192293668,0.04318116,3136.6,3136.1,0.8289]
[1738192294082,6.18797,3136.8,3136.2,3.18853]
[1738192294283,0.04312342,3136.5,3136.2,3.18853]
[1738192294492,6.18797,3136.8,3136.1,0.8289]
[1738192294689,3.23150568,3136.4,3135.8,3.18896]
[1738192294867,3.18844,3136.4,3135.8,3.18896]
[1738192295068,0.04300794,3136.3,3135.8,3.18896]